Workbook

Sheet Sheet1
E1: OFITE Viscometer Calibration Report
E2: Oil Calibration Per API Recommended Practices; 13B-1 Annex I.5, 13B-2 Annex J.5, 10B-2 Annex B.3.6 and Specification 13A Section 5.2.6
E3: Order Number: | H3: 304331 | O3: Condition Found: | R3: In Calibration
E4: Serial # / Local I.D. #: | H4: 12-2289 | O4: Condition Left: | R4: In Calibration
E5: Calibration Date: | H5: 2025-12-04 | O5: Repairs Required: | R5: Yes
E6: *Recommended Due Date: | H6: =IF(H5="","",H5+365) -> 2026-12-04 | O6: As Found Required: | R6: Yes (See Report Below)
E7: Certificate Number: | H7: =_xlfn.VALUETOTEXT(H4)&_xlfn.VALUETOTEXT(H5) -> 12-228945995 | O7: Bob: | R7: B1
E8: Part Number: | H8: 132-00 | O8: Spring: | R8: F1
E9: Model: | H9: =IF(ISNA(VLOOKUP(H8,Sheet4!A:B,2,0)),"",VLOOKUP(H8,Sheet4!A:B,2,0)) -> Hand-Crank Viscometer
B10: OFI Testing Equipment, Inc. - 11302 Steeplecrest Dr - Houston, Texas - 77065 - Phone: 832.320.7300 - Web: www.ofite.com
B18: TESTING CONDITION AND CALIBRATION FLUIDS INFORMATION
B19: Ambient Conditions | E19: Lab / Room Temperature | H19: °F | J19: °C | L19: Lab / Room Humidity | S19: 47.9
H20: 69.5 | J20: =IF((H20=""),"",(H20-32)*5/9) -> 20.83333333
B21: Calibration Fluid Activation Date and LOT Number | E21: =Sheet2!G31 -> 100 cP | H21: Activation Date | J21: Calibration Fluid LOT Number | N21: =Sheet2!G32 -> 50 cP | Q21: Activation Date | S21: Calibration Fluid LOT Number
H22: 2025-12-03 | J22: 3060-08-17 | Q22: 2025-12-03 | S22: 228501
E23: (Activation Date should not exceed 30 days of the calibration date)
B25: RPM CHECK
B26: Speed Setting | E26: 300 | N26: 600
B27: Actual | E27: 299.2 | N27: 599.6
B28: Allowed Deviation | E28: 6 | N28: 12
B29: Actual Deviation | E29: =MAX(ABS(E26-E27)) -> 0.8 | N29: =MAX(ABS(N26-N27)) -> 0.4
B30: Pass / Fail | E30: =IF(OR(E27=""),"Fail",IF(E28>=E29,"Pass","Fail")) -> Pass | N30: =IF(OR(N27=""),"Fail",IF(N28>=N29,"Pass","Fail")) -> Pass
B31: There is no specified equipment calibration RPM requirements for a Hand Crank in API / The RPM and deviations mentioned above are OFITE recommendations per the User Manual.
B33: RPM CHECK | E33: ± 1 RPM for speeds <100 RPM | K33: ± 1 % of nominal speed of 100 RPM or Greater
B34: Speed Setting | E34: 3 | H34: 6 | K34: 100 | N34: 200 | Q34: 300 | T34: 600
B35: Actual
B36: Allowed Deviation | E36: 1 | H36: 1 | K36: 1 | N36: 2 | Q36: 3 | T36: 6
B37: Actual Deviation | E37: =MAX(ABS(E34-E35)) -> 3 | H37: =MAX(ABS(H34-H35)) -> 6 | K37: =MAX(ABS(K34-K35)) -> 100 | N37: =MAX(ABS(N34-N35)) -> 200 | Q37: =MAX(ABS(Q34-Q35)) -> 300 | T37: =MAX(ABS(T34-T35)) -> 600
B38: Pass / Fail | E38: =IF(OR(E35=""),"Fail",IF(E36>=E37,"Pass","Fail")) -> Fail | H38: =IF(OR(H35=""),"Fail",IF(H36>=H37,"Pass","Fail")) -> Fail | K38: =IF(OR(K35=""),"Fail",IF(K36>=K37,"Pass","Fail")) -> Fail | N38: =IF(OR(N35=""),"Fail",IF(N36>=N37,"Pass","Fail")) -> Fail | Q38: =IF(OR(Q35=""),"Fail",IF(Q36>=Q37,"Pass","Fail")) -> Fail | T38: =IF(OR(T35=""),"Fail",IF(T36>=T37,"Pass","Fail")) -> Fail
B39: Per API RP 10B-2 Annex B, Equipment Calibration Requirements
B41: AS FOUND MEASUREMENTS
B42: Calibration Fluid Viscosity | C42: Calibration Fluid LOT Number | D42: Calibration Fluid Temperature | E42: Calibrated Viscosity (CV) | F42: 600 RPM Reading | H42: =Sheet2!L19 -> 600 VIS: 600 Reading 0.5050 | J42: Accepted Deviation | L42: Actual Deviation (600 VIS - CV) | N42: 300 RPM Reading | P42: =Sheet5!L20 -> 300 VIS: 300 Reading * 1.0000 | R42: Accepted Deviation | T42: Actual Deviation (300 VIS - CV) | V42: Pass/Fail
B45: =Sheet5!G31 -> 100 cP | C45: =J22 -> 423912 | D45: 21.4 | E45: 101.6 | F45: 195.5 | H45: =IF(Sheet5!$J$15*F45=0,"",Sheet5!$J$15*F45) -> 98.73505364 | J45: =Sheet5!M16 -> ±1.50 | L45: =IF(ISERR(H45-E45),"",H45-E45) -> -2.864946356 | N45: 98 | P45: =IF(Sheet5!$J$20*Sheet1!N45=0,"",Sheet5!$J$20*Sheet1!N45) -> 98 | R45: =Sheet5!M16 -> ±1.50 | T45: =IF(ISERR(P45-E45),"",P45-E45) -> -3.6 | V45: =IF(ISERR(IF(AND(ABS(L45)<=Sheet5!$L$16,ABS(T45)<=Sheet5!$L$16),"Pass","Fail")),"",IF(AND(ABS(L45)<=Sheet5!$L$16,ABS(T45)<=Sheet5!$L$16),"Pass","Fail")) -> Fail
B46: =Sheet5!G32 -> 50 cP | C46: =S22 -> 228501 | D46: 22 | E46: 51 | F46: 97.5 | H46: =IF(Sheet5!$J$15*F46=0,"",Sheet5!$J$15*F46) -> 49.24126716 | J46: =Sheet5!M16 -> ±1.50 | L46: =IF(ISERR(H46-E46),"",H46-E46) -> -1.758732837 | N46: 49 | P46: =IF(Sheet5!$J$20*Sheet1!N46=0,"",Sheet5!$J$20*Sheet1!N46) -> 49 | R46: =Sheet5!M16 -> ±1.50 | T46: =IF(ISERR(P46-E46),"",P46-E46) -> -2 | V46: =IF(ISERR(IF(AND(ABS(L46)<=Sheet5!$L$16,ABS(T46)<=Sheet5!$L$16),"Pass","Fail")),"",IF(AND(ABS(L46)<=Sheet5!$L$16,ABS(T46)<=Sheet5!$L$16),"Pass","Fail")) -> Fail
S47: As Found Calibration Results | V47: =IF(OR(V45="",V46=""),"Fail",IF(AND(V45 = "Pass",V46 = "Pass"),"Pass","Fail")) -> Fail
B49: AS LEFT MEASUREMENTS
B50: Calibration Fluid Viscosity | C50: Calibration Fluid LOT Number | D50: Calibration Fluid Temperature | E50: Calibrated Viscosity (CV) | F50: 600 RPM Reading | H50: =Sheet2!L19 -> 600 VIS: 600 Reading 0.5050 | J50: Accepted Deviation | L50: Actual Deviation (600 VIS - CV) | N50: 300 RPM Reading | P50: =Sheet5!L20 -> 300 VIS: 300 Reading * 1.0000 | R50: Accepted Deviation | T50: Actual Deviation (300 VIS - CV) | V50: Pass/Fail
B53: =Sheet5!G31 -> 100 cP | C53: =J22 -> 423912 | D53: 21.5 | E53: 101.4 | F53: 199.5 | H53: =IF(Sheet5!$J$15*F53=0,"",Sheet5!$J$15*F53) -> 100.7552082 | J53: =Sheet5!M16 -> ±1.50 | L53: =IF(ISERR(H53-E53),"",H53-E53) -> -0.6447918057 | N53: 100.5 | P53: =IF(Sheet5!$J$20*Sheet1!N53=0,"",Sheet5!$J$20*Sheet1!N53) -> 100.5 | R53: =Sheet5!M16 -> ±1.50 | T53: =IF(ISERR(P53-E53),"",P53-E53) -> -0.9 | V53: =IF(ISERR(IF(AND(ABS(L53)<=Sheet5!$L$16,ABS(T53)<=Sheet5!$L$16),"Pass","Fail")),"",IF(AND(ABS(L53)<=Sheet5!$L$16,ABS(T53)<=Sheet5!$L$16),"Pass","Fail")) -> Pass
B54: =Sheet5!G32 -> 50 cP | C54: =S22 -> 228501 | D54: 21.2 | E54: 51.8 | F54: 102.5 | H54: =IF(Sheet5!$J$15*F54=0,"",Sheet5!$J$15*F54) -> 51.76646035 | J54: =Sheet5!M16 -> ±1.50 | L54: =IF(ISERR(H54-E54),"",H54-E54) -> -0.03353964957 | N54: 52.5 | P54: =IF(Sheet5!$J$20*Sheet1!N54=0,"",Sheet5!$J$20*Sheet1!N54) -> 52.5 | R54: =Sheet5!M16 -> ±1.50 | T54: =IF(ISERR(P54-E54),"",P54-E54) -> 0.7 | V54: =IF(ISERR(IF(AND(ABS(L54)<=Sheet5!$L$16,ABS(T54)<=Sheet5!$L$16),"Pass","Fail")),"",IF(AND(ABS(L54)<=Sheet5!$L$16,ABS(T54)<=Sheet5!$L$16),"Pass","Fail")) -> Pass
S55: As Left Calibration Results | V55: =IF(OR(V53="",V54=""),"Fail",IF(AND(V53 = "Pass",V54 = "Pass"),"Pass","Fail")) -> Pass
B57: AS FOUND MEASUREMENTS
B58: Calibration Fluid Viscosity | C58: Calibration Fluid LOT Number | D58: Calibration Fluid Temperature | E58: Calibrated Viscosity (CV) | F58: 600 RPM Reading | G58: =Sheet2!L19 -> 600 VIS: 600 Reading 0.5050 | H58: Accepted Deviation | I58: Actual Deviation ** (600 VIS - CV) | J58: 300 RPM Reading | K58: =Sheet2!L20 -> 300 VIS: 300 Reading * 1.0000 | L58: Accepted Deviation | M58: Actual Deviation (300 VIS - CV) | N58: 200 RPM Reading | O58: =Sheet2!L21 -> 200 VIS: 200 Reading / 0.6667 | P58: Accepted Deviation | Q58: Actual Deviation (200 VIS - CV) | R58: 100 RPM Reading | S58: =Sheet2!L22 -> 100 VIS: 100 Reading / 0.3333 | T58: Accepted Deviation | U58: Actual Deviation (100 VIS - CV) | V58: Pass/Fail
B61: =Sheet2!G31 -> 100 cP | C61: =J22 -> 423912 | G61: =IF(Sheet2!S7="Yes",IF(Sheet2!$J$15*F61=0,"",Sheet2!$J$15*F61),"-") ->  | H61: =IF(Sheet2!S7="Yes",Sheet2!M16,"-") -> ±1.50 | I61: =IF(Sheet2!S7="Yes",IF(ISERR(G61-E61),"",G61-E61),"-") ->  | K61: =IF(Sheet2!$J$20*Sheet1!J61=0,"",Sheet2!$J$20*Sheet1!J61) ->  | L61: =Sheet2!M16 -> ±1.50 | M61: =IF(ISERR(K61-E61),"",K61-E61) ->  | O61: =IF(Sheet2!$J$16/0.6667*N61=0,"",Sheet2!$J$16/0.6667*N61) ->  | P61: =Sheet2!M16 -> ±1.50 | Q61: =IF(ISERR(O61-E61),"",O61-E61) ->  | S61: =IF(R61/Sheet2!$J$22=0,"",R61/Sheet2!$J$22) ->  | T61: =Sheet2!M16 -> ±1.50 | U61: =IF(ISERR(S61-E61),"",S61-E61) ->  | V61: =Sheet2!S15 -> 
B62: =Sheet2!G32 -> 50 cP | C62: =S22 -> 228501 | G62: =IF(Sheet2!S7="Yes",IF(Sheet2!$J$15*F62=0,"",Sheet2!$J$15*F62),"-") ->  | H62: =IF(Sheet2!S7="Yes",Sheet2!M16,"-") -> ±1.50 | I62: =IF(Sheet2!S7="Yes",IF(ISERR(G62-E62),"",G62-E62),"-") ->  | K62: =IF(Sheet2!$J$20*Sheet1!J62=0,"",Sheet2!$J$20*Sheet1!J62) ->  | L62: =Sheet2!M16 -> ±1.50 | M62: =IF(ISERR(K62-E62),"",K62-E62) ->  | O62: =IF(Sheet2!$J$16/0.6667*N62=0,"",Sheet2!$J$16/0.6667*N62) ->  | P62: =Sheet2!M16 -> ±1.50 | Q62: =IF(ISERR(O62-E62),"",O62-E62) ->  | S62: =IF(R62/Sheet2!$J$22=0,"",R62/Sheet2!$J$22) ->  | T62: =Sheet2!M16 -> ±1.50 | U62: =IF(ISERR(S62-E62),"",S62-E62) ->  | V62: =Sheet2!U15 -> 
S63: As Found Calibration Results | V63: =IF(OR(V61="",V62=""),"Fail",IF(AND(V61 = "Pass",V62 = "Pass"),"Pass","Fail")) -> Fail
B65: AS LEFT MEASUREMENTS
B66: Calibration Fluid Viscosity | C66: Calibration Fluid LOT Number | D66: Calibration Fluid Temperature | E66: Calibrated Viscosity (CV) | F66: 600 RPM Reading | G66: =Sheet2!L19 -> 600 VIS: 600 Reading 0.5050 | H66: Accepted Deviation | I66: Actual Deviation ** (600 VIS - CV) | J66: 300 RPM Reading | K66: =Sheet2!L20 -> 300 VIS: 300 Reading * 1.0000 | L66: Accepted Deviation | M66: Actual Deviation (300 VIS - CV) | N66: 200 RPM Reading | O66: =Sheet2!L21 -> 200 VIS: 200 Reading / 0.6667 | P66: Accepted Deviation | Q66: Actual Deviation (200 VIS - CV) | R66: 100 RPM Reading | S66: =Sheet2!L22 -> 100 VIS: 100 Reading / 0.3333 | T66: Accepted Deviation | U66: Actual Deviation (100 VIS - CV) | V66: Pass/Fail
B69: =Sheet2!G31 -> 100 cP | C69: =J22 -> 423912 | G69: =IF(Sheet2!S7="Yes",IF(Sheet2!$J$15*F69=0,"",Sheet2!$J$15*F69),"-") ->  | H69: =IF(Sheet2!S7="Yes",Sheet2!M16,"-") -> ±1.50 | I69: =IF(Sheet2!S7="Yes",IF(ISERR(G69-E69),"",G69-E69),"-") ->  | K69: =IF(Sheet2!$J$20*Sheet1!J69=0,"",Sheet2!$J$20*Sheet1!J69) ->  | L69: =Sheet2!M16 -> ±1.50 | M69: =IF(ISERR(K69-E69),"",K69-E69) ->  | O69: =IF(Sheet2!$J$16/0.6667*N69=0,"",Sheet2!$J$16/0.6667*N69) ->  | P69: =Sheet2!M16 -> ±1.50 | Q69: =IF(ISERR(O69-E69),"",O69-E69) ->  | S69: =IF(R69/Sheet2!$J$22=0,"",R69/Sheet2!$J$22) ->  | T69: =Sheet2!M16 -> ±1.50 | U69: =IF(ISERR(S69-E69),"",S69-E69) ->  | V69: =Sheet2!S24 -> 
B70: =Sheet2!G32 -> 50 cP | C70: =S22 -> 228501 | G70: =IF(Sheet2!S7="Yes",IF(Sheet2!$J$15*F70=0,"",Sheet2!$J$15*F70),"-") ->  | H70: =IF(Sheet2!S7="Yes",Sheet2!M16,"-") -> ±1.50 | I70: =IF(Sheet2!S7="Yes",IF(ISERR(G70-E70),"",G70-E70),"-") ->  | K70: =IF(Sheet2!$J$20*Sheet1!J70=0,"",Sheet2!$J$20*Sheet1!J70) ->  | L70: =Sheet2!M16 -> ±1.50 | M70: =IF(ISERR(K70-E70),"",K70-E70) ->  | O70: =IF(Sheet2!$J$16/0.6667*N70=0,"",Sheet2!$J$16/0.6667*N70) ->  | P70: =Sheet2!M16 -> ±1.50 | Q70: =IF(ISERR(O70-E70),"",O70-E70) ->  | S70: =IF(R70/Sheet2!$J$22=0,"",R70/Sheet2!$J$22) ->  | T70: =Sheet2!M16 -> ±1.50 | U70: =IF(ISERR(S70-E70),"",S70-E70) ->  | V70: =Sheet2!U24 -> 
E71: ** For viscometers not using a B1F1 configuration, the 600 rpm reading is shown, but is not used for determining a pass/fail. | S71: As Left Calibration Results | V71: =IF(OR(V69="",V70=""),"Fail",IF(AND(V69 = "Pass",V70 = "Pass"),"Pass","Fail")) -> Fail
B73: Factory Recommendations*: | D73: Factory recalibration is recommended annually. Uncertainty: 0.5%
D74: Calibration requirements are determined per customer's Quality Management System. | M74: Emad Hanna | Q74: =CalDate -> 2025-12-04
M75: Calibration Technician | Q75: Date | S75: Technician Signature
B76: Per API RP 13B-1 and -2, viscometers used for testing drilling fluids should be verified with a traceable calibration fluid at least monthly.
M77: Samantha Korenek | Q77: =IF(ISBLANK(M77),"",TODAY()) -> 2025-12-04
B78: Per API RP 10B-2, viscometers used for testing cements should be verified for accuracy with a traceable calibration fluid at least quarterly. | M78: Reviewed By | Q78: Date | S78: Reviewer Signature
B80: CALIBRATION EQUIPMENT
B81: Fluid Thermometer | E81: 709 | G81: =Sheet3!C2 -> 4000-90080-09 | I81: =Sheet3!B2 -> 240024945 | L81: =Sheet3!F2 -> 4000-14742432 | P81: =DATEVALUE(Sheet3!D2) -> 2024-01-09 | S81: =DATEVALUE(Sheet3!E2) -> 2026-01-09
E82: I.D. Number | G82: Model Number | I82: Serial Number | L82: Certificate Number | P82: Calibration Date | S82: Calibration Due Date
B83: Tachometer | E83: 155 | G83: =Sheet3!C5 -> 4060 | I83: =Sheet3!B5 -> 122574032 | L83: =Sheet3!F5 -> C-52605 | P83: =DATEVALUE(Sheet3!D5) -> 2025-07-23 | S83: =DATEVALUE(Sheet3!E5) -> 2026-07-23
E84: I.D. Number | G84: Model Number | I84: Serial Number | L84: Certificate Number | P84: Calibration Date | S84: Calibration Due Date
B85: Ambient Monitor / Thermometer | E85: 169 | G85: =Sheet3!C8 -> EA20 | I85: =Sheet3!B8 -> Z375173 | L85: =Sheet3!F8 -> C-50047 | P85: =DATEVALUE(Sheet3!D8) -> 2025-05-09 | S85: =DATEVALUE(Sheet3!E8) -> 2026-05-09
E86: I.D. Number | G86: Model Number | I86: Serial Number | L86: Certificate Number | P86: Calibration Date | S86: Calibration Due Date
B88: AS FOUND REPORT
B89: List all damages which were observed. Describe how this could have affected measurements.
B90: fail in calibration.
B95: AS LEFT REPORT
B96: List all repairs made to the unit under AS LEFT measurements.
B97: Replace bearing,shaft housing,shaft cam and calibrated
B102: Viscometer Calibration Report 12/1/2025 | C102: This report meets or exceeds the requirements outlined in API RP 13B-1 Recommended Practice for Field Testing Water-based Drilling Fluids and API RP 13B-2 Recommended Practice for Field Testing Oil-based Drilling Fluids for calibration of laboratory devices, using certified master test equipment that is traceable to NIST which is a signatory to the Mutual Recognition Arrangement (MRA) with the International Laboratory Accreditation Cooperation (ILAC). | U102: Page 1 of 1

Sheet Sheet2 (hidden)
A6: bob | B6: k2 | C6: k3 | D6: 100*k2/k3 | Q6: 900 and 800
A7: B1 | B7: 0.01323 | C7: 1.7023 | D7: =100*B7/C7 -> 0.7771838101 | R7: Standard: | S7: =IF(AND(Sheet1!R7="B1",Sheet1!R8="F1"),"Yes","No") -> Yes
A8: B2 | B8: 0.0261 | C8: 0.377 | D8: =100*B8/C8 -> 6.923076923 | F8: 100*k2/k3= | G8: =VLOOKUP(Sheet1!R7,Sheet2!A6:D11,4,FALSE) -> 0.7771838101
A9: B3 | B9: 0.0529 | C9: 0.268 | D9: =100*B9/C9 -> 19.73880597 | F9: k1= | G9: =VLOOKUP(Sheet1!R8,Sheet2!A14:B21,2,FALSE) -> 386 | Q9: as found
A10: B4 | B10: 0.106 | C10: 0.268 | D10: =100*B10/C10 -> 39.55223881 | R10: Fluid 1 | S10: Pass/Fail | T10: Fluid 2 | U10: Pass/Faill
A11: B5 | B11: 0.0154 | C11: 0.8503 | D11: =100*B11/C11 -> 1.811125485 | Q11: 600 rpm | R11: =Sheet1!I61 ->  | S11: =IF(R11="","",IF(S7="Yes",IF(ISERR(IF(ABS(R11)<=$L$16,"Pass","Fail")),"",IF(ABS(R11)<=$L$16,"Pass","Fail")),"Pass")) ->  | T11: =Sheet1!I62 ->  | U11: =IF(T11="","",IF(S7="Yes",IF(ISERR(IF(ABS(T11)<=$L$16,"Pass","Fail")),"",IF(ABS(T11)<=$L$16,"Pass","Fail")),"Pass")) -> 
Q12: 300 rpm | R12: =Sheet1!M61 ->  | S12: =IF(ISERR(IF(ABS(R12)<=$L$16,"Pass","Fail")),"",IF(ABS(R12)<=$L$16,"Pass","Fail")) ->  | T12: =Sheet1!M62 -> 
A13: Spring | B13: k1 | Q13: 200 rpm | R13: =Sheet1!Q61 ->  | T13: =Sheet1!Q62 -> 
A14: F0.2 | B14: 77.2 | Q14: 100 rpm | R14: =Sheet1!U61 ->  | T14: =Sheet1!U62 -> 
A15: F0.5 | B15: 193 | G15: =G8*G9/600 -> 0.4999882512 | J15: =G15*2/1.98 -> 0.5050386376 | S15: =IF(COUNTIF(S11:S14,"Pass")=4,"Pass",IF(COUNTIF(S11:S14,"Fail")>0,"Fail","")) ->  | U15: =IF(COUNTIF(U11:U14,"Pass")=4,"Pass",IF(COUNTIF(U11:U14,"Fail")>0,"Fail","")) -> 
A16: F1 | B16: 386 | G16: =G8*G9/300 -> 0.9999765024 | J16: =G16 -> 0.9999765024 | L16: =ROUND((1.5*G16),2) -> 1.5 | M16: ="±"&TEXT((1.5*G16),"#.00") -> ±1.50
A17: F2 | B17: 772 | G17: =1/(G8*G9/200) -> 0.6666823321 | J17: =G17 -> 0.6666823321
A18: F3 | B18: 1158 | G18: =1/(G8*G9/100) -> 0.3333411661 | J18: =G18 -> 0.3333411661 | Q18: as left
A19: F4 | B19: 1544 | J19: =FIXED(J15,4) -> 0.5050 | L19: ="600 VIS: 600 Reading "&J19 -> 600 VIS: 600 Reading 0.5050 | R19: Fluid 1 | S19: Pass/Fail | T19: Fluid 2 | U19: Pass/Faill
A20: F5 | B20: 1930 | G20: 2.330314791 | J20: =FIXED(J16,4) -> 1.0000 | L20: ="300 VIS: 300 Reading * "&J20 -> 300 VIS: 300 Reading * 1.0000 | Q20: 600 rpm | R20: =Sheet1!I69 ->  | S20: =IF(R20="","",IF(S16="Yes",IF(ISERR(IF(ABS(R20)<=$L$16,"Pass","Fail")),"",IF(ABS(R20)<=$L$16,"Pass","Fail")),"Pass")) ->  | T20: =Sheet1!I70 ->  | U20: =IF(T20="","",IF(S16="Yes",IF(ISERR(IF(ABS(T20)<=$L$16,"Pass","Fail")),"",IF(ABS(T20)<=$L$16,"Pass","Fail")),"Pass")) -> 
A21: F10 | B21: 3860 | J21: =FIXED(J17,4) -> 0.6667 | L21: ="200 VIS: 200 Reading / "&J21 -> 200 VIS: 200 Reading / 0.6667 | Q21: 300 rpm | R21: =Sheet1!M69 ->  | S21: =IF(ISERR(IF(ABS(R21)<=$L$16,"Pass","Fail")),"",IF(ABS(R21)<=$L$16,"Pass","Fail")) ->  | T21: =Sheet1!M70 ->  | U21: =IF(ISERR(IF(ABS(T21)<=$L$16,"Pass","Fail")),"",IF(ABS(T21)<=$L$16,"Pass","Fail")) -> 
J22: =FIXED(J18,4) -> 0.3333 | L22: ="100 VIS: 100 Reading / "&J22 -> 100 VIS: 100 Reading / 0.3333 | Q22: 200 rpm | R22: =Sheet1!Q69 ->  | T22: =Sheet1!Q70 -> 
Q23: 100 rpm | R23: =Sheet1!U69 ->  | T23: =Sheet1!U70 -> 
S24: =IF(COUNTIF(S20:S23,"Pass")=4,"Pass",IF(COUNTIF(S20:S23,"Fail")>0,"Fail","")) ->  | U24: =IF(COUNTIF(U20:U23,"Pass")=4,"Pass",IF(COUNTIF(U20:U23,"Fail")>0,"Fail","")) -> 
F26: 1000 cP | G26: 500 cP | H26: 200 cP | I26: 100 cP | J26: 50 cP | K26: 20 cP
F27: 500 cP | G27: 200 cP | H27: 100 cP | I27: 50 cP | J27: 20 cP | K27: 10 cP
G31: =IF(J16>7,F26,IF(J16>3.5,G26,IF(J16>1.4,H26,IF(J16>0.7,I26,IF(J16>0.35,J26,K26))))) -> 100 cP
G32: =IF(J16>7,F27,IF(J16>3.5,G27,IF(J16>1.4,H27,IF(J16>0.7,I27,IF(J16>0.35,J27,K27))))) -> 50 cP
S36: =IF(COUNTIF(S32:S35,"Pass")=4,"Pass",IF(COUNTIF(S32:S35,"Fail")>0,"Fail","")) ->  | U36: =IF(COUNTIF(U32:U35,"Pass")=4,"Pass",IF(COUNTIF(U32:U35,"Fail")>0,"Fail","")) -> 
Q39: as left
R40: Fluid 1 | S40: Pass/Fail | T40: Fluid 2 | U40: Pass/Faill
Q41: 600 rpm | R41: =Sheet1!L53 -> -0.6447918057 | S41: =IF(R41="","",IF(S37="Yes",IF(ISERR(IF(ABS(R41)<=$L$16,"Pass","Fail")),"",IF(ABS(R41)<=$L$16,"Pass","Fail")),"Pass")) -> Pass | T41: =Sheet1!L54 -> -0.03353964957 | U41: =IF(T41="","",IF(S37="Yes",IF(ISERR(IF(ABS(T41)<=$L$16,"Pass","Fail")),"",IF(ABS(T41)<=$L$16,"Pass","Fail")),"Pass")) -> Pass
Q42: 300 rpm | R42: =Sheet1!T53 -> -0.9 | S42: =IF(ISERR(IF(ABS(R42)<=$L$16,"Pass","Fail")),"",IF(ABS(R42)<=$L$16,"Pass","Fail")) -> Pass | T42: =Sheet1!T54 -> 0.7 | U42: =IF(ISERR(IF(ABS(T42)<=$L$16,"Pass","Fail")),"",IF(ABS(T42)<=$L$16,"Pass","Fail")) -> Pass
A43: OFI Testing Equipment
A48: New
A49: In Calibration
A50: Out of Calibration
A56: In Calibration
A57: Out of Calibration
A61: F°
A62: C°

Sheet Sheet3 (hidden)
A1: AliasID | B1: SerialNumber | C1: Model | D1: CalDate | E1: DueDate | F1: CalibrationNumber
A2: 709 | B2: 240024945 | C2: 4000-90080-09 | D2: 2024-01-09 | E2: 2026-01-09 | F2: 4000-14742432
A4: AliasID | B4: SerialNumber | C4: Model | D4: CalDate | E4: DueDate | F4: CalibrationNumber
A5: 155 | B5: 122574032 | C5: 4060 | D5: 2025-07-23 | E5: 2026-07-23 | F5: C-52605
A7: AliasID | B7: SerialNumber | C7: Model | D7: CalDate | E7: DueDate | F7: CalibrationNumber
A8: 169 | B8: Z375173 | C8: EA20 | D8: 2025-05-09 | E8: 2026-05-09 | F8: C-50047
A13: 130-00-C
A14: 130-00-C-H
A15: 130-00-1-C-H
A16: 130-00-C-T
A17: 130-00-1-C-T
A18: 130-10
A19: 130-10-B
A20: 130-10-S
A21: 130-10-C
A22: 130-10-C-S
A23: 130-10-C-H
A24: 130-10-L
A25: 130-10-L-S
A26: 130-10-99
A27: 130-11-C
A28: 130-60
A29: 130-60-99
A30: 130-60-12
A31: 130-70-12
A32: 130-70-99
A33: 130-76
A34: 130-76-C
A35: 130-76-1-C
A36: 130-76-H-C
A37: 130-76-1-H-C
A38: 130-76-K
A39: 130-76-1-K-C
A40: 130-76-LSK
A41: 130-76-99
A42: 130-76-600
A43: 132-00
A44: 132-00-99
A45: 900-02807
A61: F°
A62: C°

Sheet Sheet4 (hidden)
A1: 130-00-C | B1: Model 800E Viscometer 115V / 230V
A2: 130-00-C-H | B2: Model 800E Viscometer 115V w/ Heat Cup
A3: 130-00-1-C-H | B3: Model 800E Viscometer 230V w/ Heat Cup
A4: 130-00-C-T | B4: Model 800E Viscometer 115V w/ Tablet
A5: 130-00-1-C-T | B5: Model 800E Viscometer 230V w/ Tablet
A6: 130-10 | B6: Model 800 Viscometer
A7: 130-10-C | B7: Model 800 Viscometer, Complete
A8: 130-10-C-H | B8: Model 800 Viscometer, Hastelloy
A9: 130-10-L | B9: Model 800 Viscometer with Retractable Legs
A10: 130-10-99 | B10: Model 800 Viscometer, Reconditioned
A11: 130-60 | B11: 6-Speed Viscometer
A12: 130-60-99 | B12: 6-Speed Viscometer, Reconditioned | D12: rpm | E12: b1 100 | F12: b1 200 | G12: b5 100 | H12: b5 200
A13: 130-76 | B13: Model 900 Viscometer | D13: 50 | E13: 17.2 | F13: 34.5 | G13: 7.5 | H13: 15.5
A14: 130-76-C | B14: Model 900 Viscometer, Complete, 115 Volt | D14: 100 | E14: 34.2 | F14: 69.1 | G14: 15 | H14: 31
A15: 130-76-1-C | B15: Model 900 Viscometer, Complete, 230 Volt | D15: 150 | E15: 51.3 | F15: 103.9 | G15: 22.4 | H15: 46.5
A16: 130-76-H-C | B16: Model 900 Viscometer, Hastelloy, 115 Volt | D16: 200 | E16: 68.1 | F16: 138.2 | G16: 29.8 | H16: 61.9
A17: 130-76-1-H-C | B17: Model 900 Viscometer, Hastelloy, 230 Volt | D17: 250 | E17: 85.1 | F17: 172.4 | G17: 37.2 | H17: 77.2 | K17: rpm | L17: b1 100 | M17: b5 100 | N17: b5 200
A18: 130-76-K | B18: Model 900 Viscometer with KlikLok Bob, 115 Volt | D18: 300 | E18: 101.9 | F18: 206.5 | G18: 44.6 | H18: 92.5 | K18: 300 | L18: 101.9 | M18: 44.6 | N18: 92.5
A19: 130-76-1-K-C | B19: Model 900 Viscometer with KlikLok Bob, 230 Volt | D19: 350 | E19: 118.5 | F19: 240.6 | G19: 51.7 | H19: 107.8 | K19: 350 | L19: 118.5 | M19: 51.7 | N19: 107.8
A20: 130-76-LSK | B20: Model 900 LS Conversion Kit | D20: 400 | E20: 134.8 | F20: 274.1 | G20: 58.9 | H20: 122.4 | K20: 400 | L20: 134.8 | M20: 58.9 | N20: 122.4
A21: 130-76-99 | B21: Model 900 Viscometer (Reconditioned) | D21: 450 | E21: 151.3 | F21: 305.5 | G21: 66.1 | H21: 136.9 | K21: 450 | L21: 151.3 | M21: 66.1 | N21: 136.9
A22: 130-76-600 | B22: Model 900 Viscometer with No Legs or Base | D22: 500 | E22: 167.8 | F22: 337.8 | G22: 73.2 | H22: 151.5 | K22: 500 | L22: 167.8 | M22: 73.2 | N22: 151.5
A23: Other | B23: Other | D23: 550 | E23: 184.1 | F23: 341.8 | G23: 80.2 | H23: 165.8 | K23: 550 | L23: 184.1 | M23: 80.2 | N23: 165.8
A24: 130-60-12 | B24: 12 Speed Viscometer, 60 Hz | D24: 600 | E24: 200.1 | F24: 341.8 | G24: 87.3 | H24: 180.1 | K24: 600 | L24: 200.1 | M24: 87.3 | N24: 180.1
A25: 130-70-12 | B25: 12 Speed Viscometer, 50 Hz
A26: 900-02807 | B26: Model 900 Viscometer less Heat Cup
A27: 130-10-C-S | B27: Model 800 Viscometer , Complete, Stability Motor
A28: 130-10-S | B28: Model 800 Viscometer, Stability Motor
A29: 130-10-L-S | B29: Model 800 Viscometer,Retractable Legs,Stability Motor
A30: 130-10-B | B30: Model 800, Brookfield Model
A31: 130-11-C | B31: Model 800 Viscometer , Complete, Stability Motor
A32: 132-00 | B32: Hand-Crank Viscometer
A33: 132-00-99 | B33: Hand-Crank Viscometer, Reconditioned
A43: OFI Testing Equipment
A48: New
A49: In Calibration
A50: Out of Calibration
A56: In Calibration
A57: Out of Calibration
A61: F°
A62: C°

Sheet Sheet5 (hidden)
A6: bob | B6: k2 | C6: k3 | D6: 100*k2/k3
A7: B1 | B7: 0.01323 | C7: 1.7023 | D7: =100*B7/C7 -> 0.7771838101
A8: B2 | B8: 0.0261 | C8: 0.377 | D8: =100*B8/C8 -> 6.923076923 | F8: 100*k2/k3= | G8: =VLOOKUP(Sheet1!R7,Sheet5!A6:D11,4,FALSE) -> 0.7771838101
A9: B3 | B9: 0.0529 | C9: 0.268 | D9: =100*B9/C9 -> 19.73880597 | F9: k1= | G9: =VLOOKUP(Sheet1!R8,Sheet5!A14:B21,2,FALSE) -> 386
A10: B4 | B10: 0.106 | C10: 0.268 | D10: =100*B10/C10 -> 39.55223881
A11: B5 | B11: 0.0154 | C11: 0.8503 | D11: =100*B11/C11 -> 1.811125485
A13: Spring | B13: k1
A14: F0.2 | B14: 77.2
A15: F0.5 | B15: 193 | G15: =G8*G9/600 -> 0.4999882512 | J15: =G15*2/1.98 -> 0.5050386376
A16: F1 | B16: 386 | G16: =G8*G9/300 -> 0.9999765024 | J16: =G16 -> 0.9999765024 | L16: =ROUND((1.5*G16),2) -> 1.5 | M16: ="±"&TEXT((1.5*G16),"#.00") -> ±1.50
A17: F2 | B17: 772 | G17: =1/(G8*G9/200) -> 0.6666823321 | J17: =G17 -> 0.6666823321
A18: F3 | B18: 1158 | G18: =1/(G8*G9/100) -> 0.3333411661 | J18: =G18 -> 0.3333411661
A19: F4 | B19: 1544 | J19: =FIXED(J15,4) -> 0.5050 | L19: ="600 VIS: 600 Reading * "&J19 -> 600 VIS: 600 Reading * 0.5050
A20: F5 | B20: 1930 | G20: 2.330314791 | J20: =FIXED(J16,4) -> 1.0000 | L20: ="300 VIS: 300 Reading * "&J20 -> 300 VIS: 300 Reading * 1.0000
A21: F10 | B21: 3860 | J21: =FIXED(J17,4) -> 0.6667 | L21: ="200 VIS: 200 Reading / "&J21 -> 200 VIS: 200 Reading / 0.6667
J22: =FIXED(J18,4) -> 0.3333 | L22: ="100 VIS: 100 Reading / "&J22 -> 100 VIS: 100 Reading / 0.3333
F26: 1000 cP | G26: 500 cP | H26: 200 cP | I26: 100 cP | J26: 50 cP | K26: 20 cP
F27: 500 cP | G27: 200 cP | H27: 100 cP | I27: 50 cP | J27: 20 cP | K27: 10 cP
G31: =IF(J16>7,F26,IF(J16>3.5,G26,IF(J16>1.4,H26,IF(J16>0.7,I26,IF(J16>0.35,J26,K26))))) -> 100 cP
G32: =IF(J16>7,F27,IF(J16>3.5,G27,IF(J16>1.4,H27,IF(J16>0.7,I27,IF(J16>0.35,J27,K27))))) -> 50 cP
A43: OFI Testing Equipment
A48: New
A49: In Calibration
A50: Out of Calibration
A56: In Calibration
A57: Out of Calibration
A61: F°
A62: C°
